Cogmind - Beta 15 @@@ ROGUE MODE // 2025.09.20 @ 23:09:38 Player: Runagate Result: Destroyed by N8-6C6(R) with Subdweller Laser Performance ------------- Evolutions (0) 0 Regions Visited (2) 400 Robots Destroyed (14) 70 Value Destroyed (370) 370 Prototype IDs (0) 0 Alien Tech Used (0) 0 Bonus (0) 0 TOTAL SCORE: 840 Bonus ------- None Cogmind --------- Core Integrity 0/250 Matter 81/300 Energy 250/250 System Corruption 0% Temperature Cool (6) Movement Core (450) Ox8 Location -10/Subcaves Parts ------- > --- POWER (1) -------- Ion Engine > --- PROPULSION (2) --- (None) > --- UTILITY (2) ------ Large Storage Unit > --- WEAPON (2) ------- (None) > --- INVENTORY (15) --- Light Ion Engine Small Storage Unit Light Assault Rifle Grenade Launcher Peak State ------------ > --- POWER ------------ Ion Engine > --- PROPULSION ------- Light Treads Light Treads > --- UTILITY ---------- Small Storage Unit Seismic Detector > --- WEAPON ----------- Assault Rifle Light Assault Rifle > --- INVENTORY -------- Light Ion Engine EM Pulse Gun [Rating: 7] Favorites ----------- Power Ion Engine Engine Ion Engine Propulsion Light Treads Treads Light Treads Utility Seismic Detector Device Seismic Detector Storage Large Storage Unit Weapon Assault Rifle Energy Gun EM Pulse Gun Ballistic Gun Assault Rifle Launcher Grenade Launcher Build | -11 -10 -10 ------- Run | Yrd Mat Sub Slots Evolved . | . . . Power . | . . . Propulsion . | . . . Utility . | . . . Weapon . | . . . Parts Attached 11 | 8 1 2 Power 2 | 2 . . Engine 2 | 2 . . Core . | . . . Reactor . | . . . Propulsion 2 | 2 . . Treads 2 | 2 . . Leg . | . . . Wheel . | . . . Hover . | . . . Flight . | . . . Utility 3 | 2 1 . Device 1 | 1 . . Storage 2 | 1 1 . Processor . | . . . Hackware . | . . . Protection . | . . . Artifact . | . . . Weapon 4 | 2 . 2 Energy Gun 1 | . . 1 Energy Cannon . | . . . Ballistic Gun 2 | 2 . . Ballistic Cannon . | . . . Launcher 1 | . . 1 Special Weapon . | . . . Impact Weapon . | . . . Slashing Weapon . | . . . Piercing Weapon . | . . . Special Melee Weapon . | . . . Unidentified Prototypes . | . . . Parts Lost 5 | . . 5 Power . | . . . Propulsion 2 | . . 2 Utility 1 | . . 1 Weapon 2 | . . 2 Highest Loss Streak 3 | . . 3 To Critical Strikes . | . . . Average Backups 3 | 1 2 4 Power . | . 1 1 Propulsion . | . . . Utility . | . . 1 Weapon 1 | . 1 2 Tool/Special . | . . . Unused Backups . | . . . Power . | . . . Propulsion . | . . . Utility . | . . . Weapon . | . . . Tool/Special . | . . . Average Slot Usage (%) 95 | . 100 92 Engine 14 | . 14 14 Treads 26 | . 28 24 Device 12 | . 14 11 Storage 14 | . 14 14 Energy Gun 4 | . . 8 Ballistic Gun 20 | . 28 13 Launcher 2 | . . 4 Peak Build Rating 7 | 7 7 7 Average Rating 6 | 5 7 6 On Entrance 4 | . 7 7 Naked Turns . | . . . Heaviest Build 31 | 14 29 31 Greatest Support 40 | 40 40 40 Greatest Overweight (x) 9 | . . 9 Average Overweight (x) . | . . . Largest Inventory Capacity 15 | 8 15 15 Average Capacity 13 | 6 12 15 Most Carried 4 | 2 4 4 Average Carried 3 | 1 2 4 Final Capacity 15 | 8 15 15 Final Carried 4 | 2 4 4 Class Distribution -------------------- 100% | Mutant Dominant Class ---------------- Mutant | -10/Materials Mutant | -10/Subcaves Resources | -11 -10 -10 ----------- Run | Yrd Mat Sub Matter Collected 372 | 228 . 144 Remotely . | . . . Salvage Created 353 | 109 . 244 Parts 26 | 7 . 19 Haulers Intercepted . | . . . Recyclers Shooed . | . . . Parts Field Recycled . | . . . Retrieved Matter . | . . . Parts Self-Destructed 8 | . . 8 Prevented . | . . . Kills | -11 -10 -10 ------- Run | Yrd Mat Sub Combat Hostiles Destroyed 11 | . . 11 Guns 5 | . . 5 AOE 6 | . . 6 Classes Destroyed 4 | 2 . 2 Tunneler 2 | 2 . . Recycler 1 | 1 . . Swarmer 3 | . . 3 Subdweller 8 | . . 8 Best Kill Streak 7 | 2 . 7 Combat Bots Only 7 | . . 7 Max Kills in Single Turn 2 | 1 . 2 Gunslinging 1 | . . 1 Exploded 1 | . . 1 Melee . | . . . Uniques/NPCs Destroyed . | . . . Combat | -11 -10 -10 -------- Run | Yrd Mat Sub Hostile Shots Fired 74 | . . 74 Missed 24 | . . 24 Hits 50 | . . 50 Projectile 50 | . . 50 Critical Strikes 1 | . . 1 Damage Taken 933 | . . 933 Core 269 | . . 269 Absorbed by Shields . | . . . Core Remaining (%) 100 | 100 . . Volleys Fired 52 | 9 2 41 Largest 2 | 2 2 2 Hottest 60 | 40 40 60 Shots Fired 99 | 18 4 77 Gun 85 | 18 4 63 Cannon . | . . . Launcher 14 | . . 14 Special . | . . . Kinetic 61 | 18 4 39 Thermal . | . . . Explosive 14 | . . 14 Electromagnetic 24 | . . 24 Robot Hit Streak 17 | 3 1 17 Robot Miss Streak 6 | 6 2 3 Penetration Max . | . . . Secondary Targets 1 | . . 1 Max Gunslinging Chain 1 | . . 1 Shots Hit Robots 63 | 8 1 54 Core Hits 26 | 5 1 20 Critical Kills . | . . . Critical Parts Destroyed . | . . . Critical Strikes . | . . . Melee Attacks . | . . . Impact . | . . . Slashing . | . . . Piercing . | . . . Sneak Attacks . | . . . Combat Hostiles . | . . . Follow-up Attacks . | . . . Damage Inflicted 1377 | 85 10 1282 Guns 509 | 85 9 415 Cannons . | . . . Explosions 867 | . . 867 Melee . | . . . Ramming 1 | . 1 . Kinetic 397 | 85 9 303 Thermal . | . . . Explosive 867 | . . 867 Electromagnetic 112 | . . 112 Impact . | . . . Slashing . | . . . Piercing . | . . . Highest Corruption . | . . . Average Corruption . | . . . Corruption Purged . | . . . Corruption Blocked . | . . . Overload Shots . | . . . Overflow Damage 14 | . . 14 Projectiles . | . . . Explosions 14 | . . 14 Melee . | . . . Knockbacks . | . . . Impact . | . . . Kinetic . | . . . Secondary . | . . . Self-Inflicted Damage 4 | . . 4 Shots 1 | . . 1 Rammed 1 | . 1 . Targets Rammed 1 | . 1 . Kicked . | . . . Crushed . | . . . Highest Temperature . | . . . Average Temperature . | . . . Received Heat Transfer 216 | . . 216 Siege Activations . | . . . Martial Activations . | . . . Shielding Activations . | . . . Robots Disrupted . | . . . Combat Hostiles . | . . . Robots Corrupted . | . . . Combat Hostiles . | . . . Parts Fried . | . . . Impact Corruptions . | . . . Robots Melted . | . . . Combat Hostiles . | . . . Parts Melted . | . . . Heat Transferred . | . . . Parts Sabotaged . | . . . Parts Stolen . | . . . Parts Stripped . | . . . Power Chain Reactions . | . . . Alert | -11 -10 -10 ------- Run | Yrd Mat Sub Maximum Alert Level . | . . . Low Security (%) 100 | 100 100 . Level 1 . | . . . Level 2 . | . . . Level 3 . | . . . Level 4 . | . . . Level 5 . | . . . High Security . | . . . Max Security . | . . . Peak Influence 10 | 10 7 . Initial . | . . . Average . | 1 . . Influence Increases 97 | 15 7 75 Destroy 0b10 Robot/C 60 | . . 60 Destroy 0b10 Robot/NC 15 | 15 . . Successful Hack 7 | . 7 . Lose Combat Pursuer 15 | . . 15 Influence Decreases 97 | 15 7 75 Time Decay 62 | 15 7 40 Lost Part 35 | . . 35 Squads Dispatched 1 | . 1 . Investigation 1 | . 1 . Extermination . | . . . Reinforcement . | . . . Assault . | . . . Garrison . | . . . Intercept . | . . . Searches Triggered . | . . . Construction Impeded . | . . . Haulers Reinforced . | . . . Active Scanning Responses . | . . . Cargo Convoy Interrupts . | . . . Stealth | -11 -10 -10 --------- Run | Yrd Mat Sub Distress Signals . | . . . Communications Jammed . | . . . Distress Signals . | . . . Times Spotted 13 | . 1 12 Peak Tracking Total 3 | . 1 3 Tactical Retreats 2 | . . 2 Traps | -11 -10 -10 ------- Run | Yrd Mat Sub Traps Triggered . | . . . Indirectly . | . . . Trap Hack Attempts . | . . . Triggered . | . . . Disarmed . | . . . Reprogrammed . | . . . Reused . | . . . Traps Extracted . | . . . Installed . | . . . Triggered . | . . . Machines | -11 -10 -10 ---------- Run | Yrd Mat Sub Machines Disabled . | . . . Max in Single Turn . | . . . Machines Repaired . | . . . Machines Dismantled . | . . . Machines Sabotaged . | . . . Overloaded Fab Kills . | . . . Hacking | -11 -10 -10 --------- Run | Yrd Mat Sub Machines Accessed 4 | . 4 . Terminals 4 | . 4 . Fabricators . | . . . Repair Stations . | . . . Recycling Units . | . . . Scanalyzers . | . . . Garrison Access . | . . . Total Hacks 11 | . 11 . Successful 2 | . 2 . Failed 9 | . 9 . Catastrophic 2 | . 2 . Database Lockouts . | . . . Manual 4 | . 4 . Terminals 11 | . 11 . Fabricators . | . . . Repair Stations . | . . . Recycling Units . | . . . Scanalyzers . | . . . Garrison Access . | . . . Terminal Hacks 2 | . 2 . Locate Traps 1 | . 1 . Registered Components 1 | . 1 . Fabricator Hacks . | . . . Repair Station Hacks . | . . . Recycling Unit Hacks . | . . . Scanalyzer . | . . . Garrison Access Hacks . | . . . Unauthorized Hacks . | . . . Terminals . | . . . Fabricators . | . . . Repair Stations . | . . . Recycling Units . | . . . Scanalyzers . | . . . Garrison Access . | . . . Data Cores Recovered . | . . . Used . | . . . Hacking Detections 3 | . 3 . Full Trace Events 2 | . 2 . Feedback Events . | . . . Feedback Blocked . | . . . Robot Schematics Acquired . | . . . Robots Built . | . . . Authchips . | . . . Time . | . . . Total Robot Build Rating . | . . . Part Schematics Acquired . | . . . Parts Built . | . . . Authchips . | . . . Time . | . . . Total Part Build Rating . | . . . Parts Repaired . | . . . Time . | . . . Parts Recycled . | . . . Recycled Matter . | . . . Retrieved Matter . | . . . Retrieved Components . | . . . Parts Scanalyzed . | . . . Part Schematics Acquired . | . . . Parts Damaged . | . . . Bothacking | -11 -10 -10 ------------ Run | Yrd Mat Sub Used RIF Installer . | . . . Robots Hacked . | . . . Non-combat . | . . . Combat . | . . . Robot Hacks Applied . | . . . Relay Couplers Released . | . . . Fabnet Peak Effective % . | . . . Robots Rewired . | . . . Allies Hacked . | . . . Hacks Repelled . | . . . Allies | -11 -10 -10 -------- Run | Yrd Mat Sub Total Allies . | . . . Largest Group . | . . . Highest-Rated Group . | . . . Highest-Rated Ally . | . . . Total Orders . | . . . Ally Attacks . | . . . Total Damage . | . . . Kills . | . . . Allies Corrupted . | . . . Allies Melted . | . . . Intel | -11 -10 -10 ------- Run | Yrd Mat Sub Active Infowar (turns) 1042 | 19 531 492 Seismic 1042 | 19 531 492 Robot Analysis Total . | . . . Derelict Logs Recovered 1 | . . 1 Drone Launches . | . . . Drone Recoveries . | . . . Exploration | -11 -10 -10 ------------- Run | Yrd Mat Sub Turns Passed 1221 | 113 531 577 Spaces Moved 633 | 49 326 258 Core 18 | 6 . 12 Treads 615 | 43 326 246 Legs . | . . . Wheels . | . . . Hover . | . . . Flight . | . . . Fastest Speed 50 | 50 160 160 Average Speed 165 | 146 160 175 Slowest Speed 500 | 160 160 500 Overloaded Moves . | . . . Propulsion Burnouts . | . . . Robots Hopped . | . . . Potential Cave-ins . | . . . Cave-ins Triggered . | . . . Exploration Rate (%) 21 | 5 46 14 Regions Visited 2 Branch Regions 1 Pre-discovered Areas . | . . . Known Exits Taken . | . . . Unknown Exits Taken 2 | 1 1 . Scrap Searched . | . . . Spaces Dug . | . . . Terrain Destroyed 86 | . . 86 Melee . | . . . Projectile . | . . . AOE 86 | . . 86 Terrain Rammed . | . . . Walls Destroyed . | . . . Machines Disabled . | . . . Actions | -11 -10 -10 --------- Run | Yrd Mat Sub Total 707 | 70 331 306 Wait 9 | 4 1 4 Move 631 | 48 325 258 Hop . | . . . Pick Up 2 | 1 1 . Fast Attach 7 | 7 . . Attach . | . . . Detach . | . . . Swap 5 | 1 1 3 Drop . | . . . Fire 52 | 9 2 41 Melee . | . . . Ram . | . . . Kick . | . . . Crush 1 | . 1 . Escape Stasis . | . . . Rewire . | . . . Trap . | . . . Miscellaneous . | . . . Route ------- -11/Scrapyard -10/Materials (discovered 2 exits: [*Mat] / [*Sub]) -10/Subcaves History --------- Turn | Location | Event 6 | -11/Scrapyard | Discovered new exit (range 14) 114 | -11/Scrapyard | Entered Materials 315 | -10/Materials | Build established: Mutant 351 | -10/Materials | Discovered new exit (range 14) 623 | -10/Materials | Discovered new exit (range 12) 645 | -10/Materials | Entered Subcaves 649 | -10/Subcaves | Learned location of 1 exit from Materials 680 | -10/Subcaves | A swath of the cavern ceiling suddenly collapsed 821 | -10/Subcaves | Ambushed by Subdweller buried in earth 824 | -10/Subcaves | Ambushed by Subdweller buried in earth 827 | -10/Subcaves | Ambushed by Subdweller buried in earth 872 | -10/Subcaves | Destroyed 7 combat bots 1168 | -10/Subcaves | Core integrity fell below 50% 1182 | -10/Subcaves | Lost 3 parts (2n1u) 1208 | -10/Subcaves | Core integrity fell below 20% 1222 | -10/Subcaves | Destroyed by N8-6C6(R) with Subdweller Laser Last Messages --------------- 01107_ Switching to secondary target: S-10 Pest. 01107_ S-10 Pest destroyed. 01112_ Lgt. Assault Rifle fries itself beyond repair. 01112_ Acquired 18 matter. 01113_ Acquired 20 matter. 01115_ Flight Unit fries itself beyond repair. 01117_ Acquired 17 matter. 01121_ Flight Unit fries itself beyond repair. 01122_ Lgt. Assault Rifle fries itself beyond repair. 01123_ Flight Unit fries itself beyond repair. 01133_ Lgt. Treads destroyed. 01137_ Seismic Detector destroyed. 01151_ Lgt. Treads destroyed. 01184_ N8-6C6(R) misfires. 01186_ Assault Rifle destroyed. 01192_ EM Pulse Gun destroyed. 01194_ N8-6C6(R) misfires. Map ----- +----------------------------------------------------+ | ?????????????????????????????????????????????????? | | ?????????????????????????????????????????????????? | | ?????????????????????????????????????????????????? | | ?????????????????????????????????????????????????? | | ?????????????????????????????????????????????????? | | ?????????????????????????????????????????????????? | | ?????????????????????????????????????????????????? | | ?????????????????????????????????????????????????? | | ?????????????????????????????????????????????????? | | ?????????????????????????????????????????????????? | | ?????????????????????????????????????????????????? | | ?????????????????????????????????????????????????? | | ?????????????????????????????????????????????????? | | ?????????????????????????????????????????????????? | | ?????????????????????????????????????????????????? | | ?????????????????????????????????????????????????? | | ?????????????????????????????????????????????????? | | ?????????????????????????????????????????????????? | | ?????????????????????????????????????????????????? | | ?????????????????????????????????????????????????? | | ?????????????????????????????????????????????????? | | ????????????????????????????????????????????????? | | ??????????????????????#######???????????????????# | | ??????????###?????????# $# #?????????????????? | | ??????????#"""????????#$ $#?????????????????# | | ??????????#" ????????##R@###???????????####?# | | ??????????#" ???????### $#????????##### ## | | ??????????# ???????# # ###??????## # | | ??????????# ??????# < ##?????# # | | ???????????? ????### ##????# # | | ????????????## ?### #????# # &!#### | | ???????#### # ## ##????### & ###?????? | | ????#^ ^ #???##### && ###???? | | ???# ##### ## "#???? | | ??# ## ### ## "##""""" | | ??? ???##??### ## "##" | | ??? ?????????#### ##? | | ???? ???????????## ##### ##??? | | ???????????????## ###???####????? | | ???????????????# ##???#####???????# # | | ???????????????# #??### ##??????? | | ???????????????# ## #?## #???????? | | ???????????????## ?# #### #????????? | | ????????????????# ?# ### #?????????? | | ???????????????? #?## #??????????? | | ??????????????? #???#### ####??????## | | ???????????????? ???????## #######"# | | ?????????????????? ????????## " ## "" #" " | | ????????????????????????????#"" ### ## """ | | ????????????????????????????## ####### """ | +----------------------------------------------------+ Best States ------------- Heat Dissipation 25 Energy Generation 10 Energy Capacity 250 Matter Stores 219 Matter Capacity 300 Sight Range 16 Terrain Scan Density 10 Evasion (%) 40 Recoil Reduction 2 Item Schematics ----------------- None Robot Schematics ------------------ None Fabricated ------------ Nothing Repaired ---------- Nothing Alien Tech Used ----------------- None Achievements -------------- None Challenges ------------ None Game ------ Seed ScatterMultinovaMapper Manual? 0 Play Time 00:07:59 Cumulative 80.8 hours Start 2025.09.20 @ 23:04:23 End 2025.09.20 @ 23:09:38 Sessions 1 Manual Loads 0 Difficulty Rogue Special Mode None Game No. 170 Rogue 168 Adventurer 0 Explorer 2 Win Type - Total 0 Types 0/0/0/0/0/0/0/0/0/0 Lore% 28 Gallery% 46 Achievement% 41 Wizard Run 0 Options --------- Layout 2 ASCII 0 Keyboard 1 Movement Arrows Keybinds 0 Fullscreen 1 Font 28/SmallcapsGlow Map View 50x49 Zoom Use 0% Tactical HUD 1 Map Filters NONE Filters NONE Steam 1 RUN: 826fd98f-6430-4998-b007-d7ebfd54df60